bitfinex/quotes_ETHUSD_20241116
["timestamp","ask_amount","ask_price","bid_price","bid_amount"]
[1731737916876,0.622856,3119.3,3118.8,3.20634]
[1731737917079,0.2748,3119.3,3118.8,3.20634]
[1731737917286,0.2748,3119.3,3118.6,3.20653]
[1731737917583,0.2748,3119.3,3118.7,3.20645]
[1731737917876,0.2748,3119.3,3118.9,3.20623]
[1731737918766,0.2748,3119.3,3119.0,3.20612]
[1731737919359,0.2748,3119.3,3118.7,3.20644]
[1731737919360,0.2748,3119.3,3118.8,3.20631]
[1731737919563,0.2748,3119.3,3119.0,3.20614]
[1731737921071,3.20544,3119.7,3118.8,3.20636]
[1731737921271,0.2769,3119.6,3119.1,3.20604]
[1731737921702,3.48179,3120.3,3119.5,3.20556]
[1731737921906,4.21428079,3120.3,3119.5,3.20556]
[1731737922114,1.00939079,3120.3,3119.2,3.20595]
[1731737922315,1.00939079,3120.3,3119.5,3.20564]
[1731737922316,0.2769,3120.3,3119.5,3.20564]
[1731737922610,0.2769,3120.3,3119.8,3.20533]
[1731737922814,3.20453,3120.6,3120.0,3.20508]
[1731737923014,0.320453,3120.5,3120.0,3.20508]
[1731737925186,3.525103,3120.5,3119.8,3.20533]
[1731737925426,0.320453,3120.5,3119.4,0.06410205]
[1731737925630,0.2769,3120.6,3120.2,3.2049]
[1731737925830,0.2769,3120.9,3120.2,3.2049]
[1731737926035,0.2769,3120.9,3120.4,3.20471]
[1731737926946,0.2769,3120.9,3120.5,3.20451]
[1731737927146,0.2769,3120.9,3120.6,3.20448]
[1731737927460,0.2769,3121.2,3120.7,3.20439]
[1731737927734,3.20313,3122.0,3121.0,3.2041]
[1731737927943,3.20313,3122.0,3121.2,3.20381]
[1731737928094,3.20313,3122.0,3121.3,3.20376]
[1731737928497,3.20313,3122.0,3121.4,3.20368]
[1731737928727,3.20286,3122.2,3120.8,0.865]
[1731737928728,3.523533,3121.9,3120.8,0.865]
[1731737929040,3.20316,3122.0,3121.3,3.20377]
[1731737930240,3.20288,3122.2,3121.4,3.20361]
[1731737930393,3.20288,3122.2,3121.5,3.20356]
[1731737930394,0.347978,3122.1,3121.5,3.20356]
[1731737930600,0.347978,3122.1,3121.0,3.0]
[1731737930941,0.2769,3122.3,3121.0,3.0]
[1731737930942,0.2769,3122.3,3121.2,2.88249687]
[1731737931092,0.2769,3122.3,3121.8,3.20326]
[1731737931491,0.2769,3122.3,3121.6,3.20348]
[1731737931694,0.2769,3122.3,3121.8,3.20326]
[1731737932548,0.2769,3122.7,3121.6,0.06406236]
[1731737932715,0.76916835,3123.5,3121.6,0.06406236]
[1731737932716,0.2769,3123.2,3121.8,0.8489]
[1731737932915,0.2769,3123.2,3122.1,3.20294]
[1731737933128,3.47879,3123.2,3122.1,3.20294]
[1731737933369,3.47879,3123.2,3122.5,3.20255]
[1731737933530,0.347879,3123.1,3122.5,3.20255]
[1731737933850,3.20158,3123.5,3122.7,3.20228]
[1731737934055,3.47848,3123.5,3122.7,3.20228]
[1731737934453,3.20166,3123.4,3122.7,3.20228]
[1731737935169,0.2769,3123.5,3122.5,3.8489]
[1731737935517,0.2769,3123.5,3122.9,3.2021]
[1731737936669,0.2769,3123.5,3123.0,3.20204]
[1731737937465,3.47843,3123.5,3122.8,6.26627643]
[1731737937617,0.2769,3123.5,3122.8,3.20225]
[1731737937822,0.2769,3123.5,3122.9,3.0]
[1731737938417,3.20163,3123.4,3122.9,3.0]
[1731737938771,3.47848,3123.5,3122.9,3.0]
[1731737939059,3.47848,3123.5,3122.7,3.0]
[1731737939216,0.2769,3123.5,3122.9,3.20212]
[1731737939583,0.2769,3123.5,3123.0,3.20203]
[1731737940152,0.2769,3123.8,3123.1,3.26597243]
[1731737940479,3.47813,3123.8,3123.1,3.20193]
[1731737940633,3.20153,3123.6,3122.9,3.20213]
[1731737940829,3.2014,3123.7,3123.0,3.20204]
[1731737941033,3.20147,3123.6,3123.0,3.20204]
[1731737941275,0.2769,3123.8,3122.8,3.0]
[1731737941446,3.47814,3123.8,3123.0,3.20204]
[1731737941773,3.2015,3123.6,3122.8,3.20223]
[1731737941984,3.2015,3123.6,3122.9,3.20214]
[1731737942276,3.20164,3123.4,3122.7,6.20234]
[1731737942600,0.2769,3123.0,3122.6,3.0]
[1731737943078,0.2769,3123.0,3122.7,3.0]
[1731737943238,0.2769,3123.0,3122.4,6.20265]
[1731737943433,3.47902,3123.0,3122.3,3.20274]
[1731737943736,3.47902,3123.0,3122.4,3.0]
[1731737944044,0.2769,3123.0,3122.4,3.0]
[1731737944378,3.20225,3122.8,3122.2,3.0]
[1731737944584,0.2769,3123.0,3121.9,4.06945]
[1731737944740,3.20254,3122.6,3121.9,4.06945]
[1731737945086,0.3162,3122.4,3121.9,0.406945]
[1731737945292,3.51886,3122.4,3121.7,3.20337]
[1731737945439,3.51886,3122.4,3121.7,3.20331]
[1731737945746,0.3162,3122.4,3121.9,6.20309]
[1731737945951,0.3162,3122.4,3121.9,7.14373]
[1731737946380,0.3162,3122.7,3122.2,3.20279]
[1731737946580,0.3162,3122.7,3122.0,0.06405072]
[1731737946882,0.3162,3123.1,3122.5,3.20252]
[1731737947047,3.87020627,3123.1,3122.5,3.20252]
[1731737948507,3.20216,3122.9,3122.3,4.06906]
[1731737948811,3.20216,3122.9,3122.1,3.20296]
[1731737949000,3.20216,3122.9,3122.2,3.0]
[1731737949204,3.20228,3122.8,3122.2,3.0]
[1731737949560,3.20212,3123.0,3122.2,3.2028]
[1731737949768,3.20212,3123.0,3122.0,3.852]
[1731737949967,3.20222,3122.9,3122.2,3.0]
[1731737950184,3.20226,3122.8,3122.2,3.0]
[1731737950754,3.20239,3122.7,3122.2,3.0]
[1731737951299,3.20257,3122.5,3122.0,3.0]
[1731737951608,0.3162,3122.6,3122.1,3.0]
[1731737952398,3.20257,3122.5,3121.9,3.0]
[1731737952599,3.20266,3122.4,3121.9,3.0]
[1731737952899,3.20266,3122.4,3121.8,3.20327]
[1731737953117,3.20266,3122.4,3121.8,3.929144]
[1731737953274,0.3162,3123.1,3122.5,3.20248]
[1731737954386,3.20206,3123.0,3122.3,4.09863]
[1731737954586,3.20206,3123.0,3122.4,3.20261]
[1731737955611,0.3162,3123.1,3122.4,3.20261]
[1731737955779,3.51821,3123.1,3122.4,3.20261]
[1731737955975,3.20207,3123.0,3122.4,3.20261]
[1731737956176,0.3162,3123.1,3122.4,3.20261]
[1731737956525,0.3162,3123.1,3122.4,3.612461]
[1731737957234,0.3162,3123.1,3122.5,3.20246]
[1731737957907,3.20184,3123.2,3122.5,3.20246]
[1731737958125,0.00262271,3123.3,3122.7,3.20233]
[1731737958324,3.20444271,3123.3,3122.6,3.20238]
[1731737958879,0.00262271,3123.3,3122.6,3.20238]
[1731737959135,0.00262271,3123.3,3122.7,3.39068686]
[1731737959279,0.00262271,3123.3,3123.2,3.20184]
[1731737960132,0.3162,3123.8,3123.2,3.20184]
[1731737960312,0.3162,3123.8,3123.0,3.20196]
[1731737960313,3.20115,3123.9,3123.3,3.20173]
[1731737960634,3.2007,3124.4,3123.5,3.20153]
[1731737960947,3.20027,3124.8,3123.7,3.0]
[1731737961236,3.20056,3124.5,3123.9,3.0]
[1731737961729,3.20056,3124.5,3123.7,3.0]
[1731737961927,0.320027,3124.7,3123.9,3.20111]
[1731737962252,4.865,3125.0,3123.7,3.0]
[1731737962253,4.865,3125.0,3124.1,0.8959]
[1731737962626,4.865,3125.0,3124.3,3.2007]
[1731737963253,5.42,3125.0,3124.3,3.2007]
[1731737963570,0.62912,3124.9,3124.4,3.20059]
[1731737963714,2.22,3125.0,3124.4,3.20059]
[1731737964070,2.22,3125.0,3124.1,0.8959]
[1731737964356,2.22,3125.0,3124.5,3.20041]
[1731737964555,2.22,3125.0,3124.6,3.20033]
[1731737965355,2.775,3125.0,3124.6,3.20033]
[1731737965857,2.775,3125.0,3124.7,3.20027]
[1731737966463,0.555,3125.4,3125.3,4.64559]
[1731737966619,0.555,3125.4,3125.3,10.52808687]
[1731737966817,0.555,3125.4,3125.3,7.09559]
[1731737967266,0.555,3125.4,3125.3,3.19969]
[1731737967416,1.11,3125.4,3125.3,3.19969]
[1731737969457,1.665,3125.4,3125.3,3.19969]
[1731737971270,1.665,3125.4,3125.3,6.93292]
[1731737971422,2.22,3125.4,3125.3,7.48292]
[1731737973820,2.775,3125.4,3125.3,7.48292]
[1731737975161,2.775,3125.4,3125.3,8.41192]
[1731737975907,1.11,3125.5,3125.4,6.74959]
[1731737976102,1.11,3125.5,3125.4,6.19959]
[1731737976306,1.11,3125.5,3125.0,3.78054634]
[1731737976307,1.11,3125.5,3125.0,0.929]
[1731737976518,1.6095,3125.5,3125.2,3.19979]
[1731737976866,1.11,3125.5,3125.2,3.19979]
[1731737977608,1.11,3125.5,3125.4,6.19959]
[1731737978166,1.665,3125.5,3125.4,6.74959]
[1731737978511,1.665,3125.5,3125.4,10.52013634]
[1731737978664,1.665,3125.5,3125.4,12.82112697]
[1731737979067,1.665,3125.5,3125.4,9.05058063]
[1731737980474,2.22,3125.5,3125.4,9.05058063]
[1731737982369,2.22,3125.5,3125.4,12.82112697]
[1731737982607,2.775,3125.5,3125.4,12.82112697]
[1731737984785,3.33,3125.5,3125.4,12.82112697]
[1731737986001,3.33,3125.5,3125.4,13.14122697]
[1731737986186,3.33,3125.5,3125.4,13.79031898]
[1731737986393,0.96204939,3125.5,3125.4,13.80031898]
[1731737986833,1.51704939,3125.5,3125.4,13.80031898]
[1731737988670,1.51704939,3125.5,3125.4,13.79031898]
[1731737988838,2.07204939,3125.5,3125.4,13.79031898]
[1731737990815,2.62704939,3125.5,3125.4,13.12959357]
[1731737992913,3.18204939,3125.5,3125.4,13.12959357]
[1731737995258,3.73704939,3125.5,3125.4,13.12959357]
[1731737997332,4.29204939,3125.5,3125.4,13.12959357]
[1731737999418,4.84704939,3125.5,3125.4,13.12959357]
[1731738000042,3.51502258,3125.5,3125.4,13.12959357]
[1731738001369,0.555,3125.9,3125.4,13.12959357]
[1731738001370,1.46071073,3125.8,3125.7,3.20928]
[1731738001564,0.04444073,3125.9,3125.8,6.75918]
[1731738002464,0.04444073,3125.9,3125.8,6.82314541]
[1731738002624,0.04444073,3125.9,3125.8,8.22802004]
[1731738002955,0.04444073,3125.9,3125.8,8.16405463]
[1731738003462,0.555,3126.4,3126.3,6.74866]
[1731738003759,0.555,3126.4,3126.3,9.85848093]
[1731738004525,0.555,3126.4,3126.3,10.76498093]
[1731738004836,0.555,3126.4,3126.3,12.16335702]
[1731738005568,0.555,3126.4,3126.3,12.49345702]
[1731738005858,1.11,3126.4,3126.3,12.49345702]
[1731738006538,1.11,3127.0,3126.6,6.74836]
[1731738006721,1.11,3127.0,3126.6,9.85818093]
[1731738007061,1.11,3127.0,3126.6,11.16484602]
[1731738007852,0.7003799,3126.7,3126.6,11.16484602]
[1731738008776,0.25638,3126.7,3126.6,12.44084602]
[1731738009081,0.25638,3126.7,3126.6,15.19809979]
[1731738009264,0.25638,3126.7,3126.6,16.52397012]
[1731738009438,0.25638,3126.7,3126.6,16.53212277]
[1731738009638,0.14894,3126.7,3126.6,16.53212277]
[1731738009838,0.555,3126.7,3126.6,16.53212277]
[1731738010236,1.11,3127.0,3126.9,7.06815]
[1731738010451,1.11,3127.0,3126.9,12.30882504]
[1731738010979,1.11,3127.0,3126.9,12.92459626]
[1731738011136,4.44,3127.7,3127.1,0.01]
[1731738011341,4.44,3127.7,3127.3,6.30746093]
[1731738011639,4.44,3127.7,3127.3,9.85746093]
[1731738011839,4.44,3127.7,3127.3,11.17037709]
[1731738012093,11.1,3127.4,3127.3,11.17037709]
[1731738012380,11.1,3127.4,3127.3,12.07257709]
[1731738014186,11.655,3127.4,3127.3,12.07257709]
[1731738015176,11.655,3127.4,3127.3,12.08257709]
[1731738016071,12.21,3127.4,3127.3,12.08257709]
[1731738016482,12.21,3127.4,3127.3,12.07257709]
[1731738016686,12.21,3127.4,3127.3,11.18037709]
[1731738016996,12.21,3127.4,3127.3,11.3134277]
[1731738017502,12.21,3127.4,3127.3,11.3234277]
[1731738017876,12.0109,3127.4,3127.3,12.2156277]
[1731738018069,12.5659,3127.4,3127.3,12.2156277]
[1731738020174,13.1209,3127.4,3127.3,12.2156277]
[1731738020864,13.1209,3127.4,3127.3,9.08580677]
[1731738021064,13.1209,3127.4,3127.3,9.85746093]
[1731738022409,13.6759,3127.4,3127.3,9.85746093]
[1731738022605,13.6759,3127.4,3127.3,9.86746093]
[1731738022777,13.6759,3127.4,3127.3,9.85746093]
[1731738022983,13.37405731,3127.4,3127.3,9.85746093]
[1731738023203,13.37405731,3127.4,3127.3,11.17840877]
[1731738024296,13.92905731,3127.4,3127.3,11.17840877]
[1731738026204,13.92905731,3127.4,3127.3,11.49850877]
[1731738026416,14.48405731,3127.4,3127.3,11.49850877]
[1731738028186,14.48405731,3127.4,3127.3,6.19764]
[1731738028616,15.03905731,3127.4,3127.3,6.19764]
[1731738028771,15.03905731,3127.4,3127.3,9.30746093]
[1731738029371,15.03905731,3127.4,3127.3,6.19764]
[1731738030708,15.59405731,3127.4,3127.3,6.19764]
[1731738032189,15.65786265,3127.4,3127.3,6.19764]
[1731738032926,16.21286265,3127.4,3127.3,6.19764]
[1731738034489,0.3615,3127.3,3127.2,6.19774]
[1731738034873,0.42617561,3127.3,3127.2,6.19774]
[1731738035125,0.98117561,3127.3,3127.2,6.19774]
[1731738035687,0.98117561,3127.3,3127.2,7.13729]
[1731738035688,0.61967561,3127.3,3127.2,7.13729]
[1731738036078,0.61967561,3127.3,3127.2,7.45739]
[1731738036274,0.61967561,3127.3,3127.2,8.07133605]
[1731738036485,0.61967561,3127.3,3127.2,8.00739]
[1731738037182,1.17467561,3127.3,3127.2,8.00739]
[1731738038018,1.17467561,3127.3,3127.2,8.14469682]
[1731738038581,16.14905731,3127.4,3127.3,3.51774]
[1731738038787,16.14905731,3127.4,3127.3,11.96957061]
[1731738039481,16.70405731,3127.4,3127.3,11.96957061]
[1731738040797,16.76660299,3127.4,3127.3,11.96957061]
[1731738041585,17.32160299,3127.4,3127.3,11.96957061]
[1731738041958,17.32160299,3127.4,3127.3,11.64947061]
[1731738043238,17.32160299,3127.4,3127.3,11.09947061]
[1731738043445,17.32160299,3127.4,3127.3,6.19764]
[1731738043672,17.87660299,3127.4,3127.3,6.19764]
[1731738043868,17.87660299,3127.4,3126.9,3.19799]
[1731738043869,18.38820299,3127.4,3126.6,1.30666509]
[1731738044067,0.5116,3127.2,3126.5,3.19843]
[1731738044254,3.19807,3126.9,3126.1,3.1988]
[1731738044473,3.19807,3126.9,3126.0,6.30871093]
[1731738044474,0.5116,3126.8,3126.4,3.19853]
[1731738044645,0.57401756,3126.8,3126.5,3.26241209]
[1731738044851,0.57401756,3126.8,3126.6,3.19833]
[1731738045286,0.57401756,3126.8,3126.4,3.19853]
[1731738045649,1.12901756,3126.8,3126.4,3.19853]
[1731738045990,0.5116,3126.6,3125.6,0.13729404]
[1731738046302,0.06222115,3126.5,3126.2,3.19874]
[1731738046594,0.06222115,3126.5,3126.4,3.19856]
[1731738046798,0.5116,3126.6,3126.4,3.19856]
[1731738046951,0.06222115,3126.5,3126.4,3.19856]
[1731738047151,0.06222115,3126.5,3126.4,6.19856]
[1731738047751,0.61722115,3126.5,3126.4,6.19856]
[1731738050049,1.11,3126.5,3126.4,6.19856]
[1731738050250,1.17222115,3126.5,3126.4,6.19856]
[1731738050769,1.68382115,3126.5,3126.3,3.0]
[1731738050972,1.6216,3126.5,3126.3,3.0]
[1731738051163,0.06216774,3126.4,3126.3,3.0]
[1731738052174,0.61716774,3126.4,3126.3,3.0]
[1731738052489,0.61716774,3126.4,3126.3,6.19866]
[1731738053190,0.555,3126.4,3126.3,6.19866]
[1731738053355,0.555,3126.4,3126.3,7.04177556]
[1731738053756,0.61717434,3126.4,3126.3,7.04177556]
[1731738054361,1.17217434,3126.4,3126.3,6.19866]
[1731738054562,1.17217434,3126.4,3126.2,3.0]
[1731738054898,1.17217434,3126.4,3126.3,3.19866]
[1731738055190,1.17217434,3126.4,3126.3,6.19866]
[1731738056617,1.72717434,3126.4,3126.3,6.19866]
[1731738058825,2.28217434,3126.4,3126.3,6.19866]
[1731738059024,2.22,3126.4,3126.3,6.19866]
[1731738059233,2.22,3126.4,3126.3,7.138404]
[1731738059420,2.28204691,3126.4,3126.3,7.138404]
[1731738059615,2.22,3126.4,3126.3,7.138404]
[1731738060710,2.775,3126.4,3126.3,7.138404]
[1731738061033,2.83703812,3126.4,3126.3,7.138404]
[1731738062121,2.83703812,3126.4,3126.3,6.19866]
[1731738062321,0.57383412,3126.4,3126.3,6.19866]
[1731738062933,1.12883412,3126.4,3126.3,6.19866]
[1731738063507,1.066796,3126.4,3126.3,6.19866]
[1731738065168,1.621796,3126.4,3126.3,6.19866]
[1731738065461,1.68175063,3126.4,3126.2,3.0]
[1731738065667,1.68175063,3126.4,3125.5,4.21512687]
[1731738065668,2.01208569,3126.4,3126.0,6.19894]
[1731738065867,0.5241,3126.3,3126.0,6.19894]
[1731738066034,1.621796,3126.4,3126.1,0.9901]
[1731738066370,17.81405731,3127.4,3127.3,6.19764]
[1731738066523,17.81405731,3127.4,3127.3,7.137189]
[1731738066723,17.81405731,3127.4,3127.3,8.10671281]
[1731738067466,18.36905731,3127.4,3127.3,8.10671281]
[1731738067673,18.36905731,3127.4,3127.3,6.19764]
[1731738069038,18.36905731,3127.4,3127.3,9.30746093]
[1731738069460,18.92405731,3127.4,3127.3,9.30746093]
[1731738071623,19.47905731,3127.4,3127.3,9.30746093]
[1731738072118,19.47905731,3127.4,3127.1,3.19785]
[1731738072119,20.00315731,3127.4,3127.1,3.19785]
[1731738072313,1.94790573,3127.3,3126.8,3.19808]
[1731738072613,0.5241,3127.2,3126.8,3.19808]
[1731738073592,1.0791,3127.2,3126.8,3.19808]
[1731738073911,0.35508129,3127.1,3126.8,3.19808]
[1731738075693,0.91008129,3127.1,3126.9,3.19803]
[1731738076694,0.91008129,3127.1,3126.8,3.1981]
[1731738076892,0.91008129,3127.1,3126.9,3.19803]
[1731738077785,1.46508129,3127.1,3126.9,3.19803]
[1731738079335,0.25441813,3127.0,3126.4,6.19846]
[1731738079541,0.5241,3126.9,3126.4,6.19846]
[1731738079732,0.57639261,3126.9,3126.4,6.19846]
[1731738079940,1.67553474,3126.9,3126.4,6.19846]
[1731738080471,0.5241,3126.8,3126.2,3.19876]
[1731738080764,0.05210345,3126.7,3126.2,3.19876]
[1731738080928,0.5241,3126.6,3126.2,3.19876]
[1731738081129,0.57618081,3126.6,3126.2,3.19876]
[1731738081451,0.57618081,3126.6,3125.6,3.10982093]
[1731738081652,0.57618081,3126.6,3126.3,3.19859]
[1731738081825,0.5241,3126.6,3126.3,3.19859]
[1731738082022,0.05203729,3126.5,3126.4,3.19856]
[1731738082777,0.555,3126.6,3126.5,3.19846]
[1731738082998,0.555,3126.6,3126.5,10.86054496]
[1731738083284,0.555,3126.6,3126.5,12.20249143]
[1731738084079,1.11,3126.6,3126.5,11.65249143]
[1731738084842,0.555,3126.9,3126.8,3.19815]
[1731738085055,0.555,3126.9,3126.8,10.24627093]
[1731738085282,0.6070663,3126.9,3126.8,11.59072502]
[1731738086095,1.1620663,3126.9,3126.8,11.59072502]
[1731738087964,1.1620663,3126.9,3126.8,10.65242502]
[1731738088177,1.7170663,3126.9,3126.8,10.65242502]
[1731738090201,2.2720663,3126.9,3126.8,10.65242502]
[1731738090432,2.2720663,3126.9,3126.8,6.19815]
[1731738090610,2.2720663,3126.9,3126.7,3.0]
[1731738091088,2.2720663,3126.9,3126.0,3.19895]
[1731738091089,3.1983,3126.7,3126.0,3.19895]
[1731738091297,0.37192729,3126.6,3126.0,3.19895]
[1731738091507,0.5241,3126.5,3126.0,3.19895]
[1731738091708,0.57617466,3126.5,3126.0,3.19895]
[1731738092217,0.57617466,3126.5,3125.9,3.19907]
[1731738092417,1.13117466,3126.5,3125.9,3.19907]
[1731738092778,1.13117466,3126.5,3126.0,3.19897]
[1731738093416,1.13117466,3126.5,3126.1,3.0]
[1731738094588,1.68617466,3126.5,3126.1,3.0]
[1731738096820,2.24117466,3126.5,3126.1,3.0]
[1731738099022,2.79617466,3126.5,3126.1,3.0]
[1731738101352,3.35117466,3126.5,3126.1,3.0]
[1731738102456,0.5679,3126.2,3125.6,3.19938]
[1731738102659,0.5679,3126.2,3125.6,3.19931]
[1731738102951,0.05185659,3126.1,3125.6,3.19931]
[1731738103548,0.60685659,3126.1,3125.6,3.19931]
[1731738104174,0.60685659,3126.1,3125.7,3.0]
[1731738105475,3.7669,3126.0,3125.5,3.0]
[1731738105882,0.05172005,3125.9,3125.5,3.0]
[1731738106992,0.05172005,3125.9,3125.2,3.19975]
[1731738106993,3.25080005,3125.9,3125.3,6.19968]
[1731738107482,0.05172005,3125.9,3125.3,3.0]
[1731738107682,0.60672005,3125.9,3125.5,6.19942]
[1731738108188,0.60672005,3125.9,3125.4,3.0]
[1731738108791,0.60672005,3125.9,3125.4,6.19958]
[1731738109844,1.16172005,3125.9,3125.4,6.19958]
[1731738111190,1.16172005,3125.9,3125.3,3.0]
[1731738111390,1.16172005,3125.9,3125.4,0.939936]
[1731738111696,1.16172005,3125.9,3125.8,3.19918]
[1731738111840,1.71672005,3125.9,3125.8,3.19918]
[1731738113539,1.71672005,3125.9,3125.8,10.31280093]
[1731738113748,1.665,3125.9,3125.8,10.31280093]
[1731738113948,2.22,3125.9,3125.8,11.98394802]
[1731738114190,2.27165518,3125.9,3125.8,11.98394802]
[1731738115454,8.51e-06,3125.9,3125.8,11.98394802]
[1731738115637,3.63e-06,3125.9,3125.8,11.98394802]
[1731738115841,1.11,3126.1,3126.0,7.20277]
[1731738116088,1.11,3126.1,3126.0,9.0210618]
[1731738116246,2.775,3126.5,3126.4,3.19856]
[1731738116446,2.775,3126.5,3126.4,6.19856]
[1731738116642,2.82346012,3126.5,3126.4,6.19856]
[1731738117478,2.82346012,3126.5,3126.4,3.19856]
[1731738117904,2.82346012,3126.5,3126.4,6.19856]
[1731738118295,3.37846012,3126.5,3126.4,6.19856]
[1731738119483,3.37846012,3126.5,3126.3,3.0]
[1731738119684,3.37846012,3126.5,3126.3,6.19862]
[1731738119909,3.37846012,3126.5,3126.4,6.19856]
[1731738120319,3.37846012,3126.5,3126.4,3.19856]
[1731738120648,3.37846012,3126.5,3125.7,3.19927]
[1731738120649,0.5679,3126.4,3125.9,3.199]
[1731738120781,3.19869,3126.3,3125.6,3.1993]
[1731738121095,0.5679,3126.2,3125.9,3.199]
[1731738121303,0.5679,3126.2,3125.7,3.19928]
[1731738121304,0.5679,3126.2,3126.0,3.19897]
[1731738121522,0.04836955,3126.1,3126.0,3.19897]
[1731738122034,0.04836955,3126.1,3126.0,6.518867]
[1731738122527,0.5679,3126.4,3126.1,3.0]
[1731738122731,0.5679,3126.4,3126.0,0.319897]
[1731738122732,0.5679,3126.4,3126.0,3.0]
[1731738123030,0.04841484,3126.3,3126.0,3.0]
[1731738123332,0.04841484,3126.3,3126.2,6.19877]
[1731738124835,0.60341484,3126.3,3126.2,6.19877]
[1731738126018,0.60341484,3126.3,3126.1,3.0]
[1731738126218,0.60341484,3126.3,3126.1,6.19887]
[1731738126804,1.15841484,3126.3,3126.1,6.19887]
[1731738127337,1.15841484,3126.3,3126.1,3.0]
[1731738127535,1.15841484,3126.3,3125.9,3.0]
[1731738127903,1.15841484,3126.3,3126.0,3.19894]
[1731738128121,1.15841484,3126.3,3126.1,3.0]
[1731738128521,1.71954632,3126.3,3125.8,3.0]
[1731738128720,1.71954632,3126.3,3125.7,3.0]
[1731738128926,1.71341484,3126.3,3125.9,3.0]
[1731738129842,1.71341484,3126.3,3125.5,3.0]
[1731738129843,4.91215484,3126.3,3125.5,3.0]
[1731738130004,4.91215484,3126.3,3125.4,3.19955]
[1731738130005,3.78057,3126.1,3125.4,3.19955]
[1731738130214,3.62542459,3126.0,3125.4,3.19955]
[1731738130509,0.42644459,3126.0,3125.4,3.19955]
[1731738130844,0.04838759,3126.0,3125.6,3.19931]
[1731738131054,0.60338759,3126.0,3125.6,3.19931]
[1731738131204,0.60338759,3126.0,3125.5,3.0]
[1731738131409,0.5817,3125.8,3125.4,6.19958]
[1731738131609,0.04830095,3125.7,3125.4,3.0]
[1731738131863,0.04830095,3125.7,3125.0,3.19996]
[1731738131864,3.19936,3125.7,3125.0,3.19996]
[1731738132011,0.5817,3125.5,3125.0,3.19996]
[1731738132214,0.5817,3125.5,3125.1,3.1998]
[1731738132523,0.0482154,3125.4,3125.1,3.1998]
[1731738132909,0.5817,3125.5,3125.3,3.19969]
[1731738133115,0.555,3125.4,3125.2,6.19977]
[1731738133329,0.6032154,3125.4,3125.2,6.19977]
[1731738133861,0.6032154,3125.4,3125.2,3.0]
[1731738134025,0.6032154,3125.4,3125.3,6.19969]
[1731738134228,0.555,3125.4,3125.3,9.37350099]
[1731738134462,0.555,3125.4,3125.3,10.25751093]
[1731738134656,0.555,3125.4,3125.3,7.14769]
[1731738134812,0.555,3125.4,3125.3,8.564417]
[1731738135208,1.11,3125.4,3125.3,8.564417]
[1731738135413,1.11,3125.4,3125.3,7.616417]
[1731738137055,1.1582154,3125.4,3125.3,3.19969]
[1731738137261,1.7132154,3125.4,3125.1,6.39962]
[1731738137571,1.7132154,3125.4,3124.5,0.13302991]
[1731738137572,0.5817,3125.3,3124.9,3.20008]
[1731738137728,4.01088154,3125.3,3124.7,3.20029]
[1731738137925,0.04817009,3125.2,3124.7,3.20029]
[1731738138233,0.5817,3125.0,3124.1,0.50046654]
[1731738138434,0.04805374,3124.9,3124.5,3.20042]
[1731738139024,0.04805374,3124.9,3124.6,3.0]
[1731738141275,0.04805374,3124.9,3124.4,3.0]
[1731738141566,0.5817,3125.0,3124.4,3.0]
[1731738141889,0.5817,3124.7,3124.2,3.0]
[1731738142069,0.5817,3124.7,3124.2,3.93107109]
[1731738142248,0.04786695,3124.6,3124.2,3.93107109]
[1731738143466,0.04786695,3124.6,3124.1,3.20089]
[1731738143778,3.20055,3124.5,3123.9,3.20109]
[1731738143983,0.04782161,3124.4,3123.9,3.20109]
[1731738144493,0.5817,3124.3,3123.4,3.61061015]
[1731738144690,0.5817,3124.3,3123.6,3.20143]
[1731738144993,0.5817,3124.3,3123.9,3.0]
[1731738145160,0.04763985,3124.2,3123.9,3.0]
[1731738145358,0.5817,3124.3,3123.9,3.0]
[1731738145594,0.04763985,3124.2,3123.9,3.0]
[1731738145748,0.5817,3124.3,3123.9,3.0]
[1731738145948,0.04763985,3124.2,3123.9,3.0]
[1731738146260,0.5817,3124.3,3123.9,3.0]
[1731738146448,0.04761718,3124.1,3123.9,3.0]
[1731738146653,0.5817,3124.3,3123.9,3.0]
[1731738146844,0.0475945,3124.0,3123.9,3.0]
[1731738147047,0.5817,3124.3,3123.9,3.0]
[1731738147339,1.279993,3124.3,3123.5,3.20153]
[1731738147571,0.04756718,3124.2,3123.8,3.0]
[1731738147768,0.5817,3124.3,3123.8,3.0]
[1731738147967,0.04756718,3124.2,3123.9,3.0]
[1731738148143,0.5817,3124.3,3123.9,3.0]
[1731738148339,0.04756718,3124.2,3124.0,3.20102]
[1731738148588,0.5817,3124.3,3124.1,3.20092]
[1731738148753,0.04752646,3124.2,3124.1,3.20092]
[1731738148949,0.5817,3124.3,3124.1,3.20092]
[1731738149151,0.04752646,3124.2,3124.1,3.20092]
[1731738149351,0.5817,3124.3,3124.1,3.20092]
[1731738149663,0.04752646,3124.2,3123.5,3.0]
[1731738149847,0.04752646,3124.2,3124.0,3.20095]
[1731738150052,0.5817,3124.3,3124.0,3.20095]
[1731738150473,0.04752646,3124.2,3124.0,3.20095]
[1731738150888,0.5817,3124.3,3124.0,3.20095]
[1731738151248,0.04752646,3124.2,3124.0,3.841165]
[1731738151490,0.5817,3124.3,3123.6,0.98121602]
[1731738151793,0.04752646,3124.2,3123.6,3.20142]
[1731738152667,3.24834646,3124.2,3123.6,3.20142]
[1731738153648,0.04752646,3124.2,3123.7,6.2013]
[1731738153988,0.04752646,3124.2,3123.7,3.0]
[1731738155495,0.04752646,3124.2,3123.7,6.2013]